fUSD/lending_fUSD_20240831
["ID","MTS","AMOUNT","RATE_DAILY","PERIOD"]
[336729233,1725085280727,-696.93,0.0004,120]
[336729234,1725085280778,-500.0,0.0004,120]
[336729235,1725085280828,-500.0,0.0004,120]
[336729236,1725085280879,-500.0,0.0004,120]
[336729237,1725085280932,-500.0,0.0004,120]
[336729238,1725085280986,-1372.32,0.0004,120]
[336729239,1725085281037,-500.0,0.0004,120]
[336729240,1725085281086,-833.92,0.0004,120]
[336729241,1725085281137,-500.0,0.0004,120]
[336729242,1725085281189,-664.41,0.0004,120]
[336729243,1725085281240,-500.0,0.0004,120]
[336729244,1725085281291,-1438.05,0.0004,120]
[336729245,1725085281344,-500.0,0.0004,120]
[336729246,1725085281392,-863.53,0.0004,120]
[336729247,1725085281440,-785.33,0.0004,120]
[336729248,1725085281488,-1603.72,0.0004,120]
[336729249,1725085281535,-500.0,0.0004,120]
[336729250,1725085281583,-512.7109135,0.0004,120]
[336729251,1725085281636,-500.0,0.0004,120]
[336729252,1725085281688,-500.0,0.0004,120]
[336729253,1725085281739,-361.18407152,0.0004,120]
[336729254,1725085281790,-2224.87,0.0004,120]
[336729255,1725085281842,-500.0,0.0004,120]
[336729256,1725085281894,-1322.92,0.0004,120]
[336729257,1725085281950,-2404.44,0.0004,120]
[336729258,1725085282000,-500.0,0.0004,120]
[336729259,1725085282050,-901.41,0.0004,120]
[336729260,1725085282102,-610.01,0.0004,120]
[336729261,1725085282154,-729.12,0.0004,120]
[336729262,1725085282206,-500.0,0.0004,120]
[336729263,1725085282260,-1979.21,0.0004,120]
[336729264,1725085282314,-577.81,0.0004,120]
[336729265,1725085282368,-500.0,0.0004,120]
[336729266,1725085282422,-6226.26,0.0004,120]
[336729267,1725085282478,-666.11,0.0004,120]
[336729268,1725085282530,-500.0,0.0004,120]
[336729269,1725085282580,-500.0,0.0004,120]
[336729270,1725085282637,-558.02787432,0.0004,120]
[336729271,1725085282691,-500.0,0.0004,120]
[336729272,1725085282743,-2083.88,0.0004,120]
[336729273,1725085282795,-2247.13,0.0004,120]
[336729274,1725085282850,-500.0,0.0004,120]
[336729275,1725085282905,-1000.0,0.0004,120]
[336729276,1725085282958,-3075.22,0.0004,120]
[336729277,1725085283008,-2368.94,0.0004,120]
[336729278,1725085283058,-1000.0,0.00040016,120]
[336729279,1725085283110,-150.0,0.00040092,120]
[336729280,1725085283163,-151.0,0.0004011,120]
[336729281,1725085283217,-1000.0,0.0004031,120]
[336729282,1725085283268,-303.14,0.000404,120]
[336729283,1725085283323,-2142.76,0.00040547,120]
[336729284,1725085283379,-500.0,0.00040547,120]
[336729285,1725085283436,-500.0,0.00040547,120]
[336729286,1725085283491,-500.98280168,0.00040547,120]
[336729287,1725085283547,-500.0,0.00040547,120]
[336729288,1725085283603,-500.0,0.00040547,120]
[336729289,1725085283660,-500.0,0.00040547,120]
[336729290,1725085283716,-514.80943524,0.00040547,120]
[336729291,1725085283771,-500.0,0.00040547,120]
[336729292,1725085283823,-500.0,0.00040547,120]
[336729293,1725085283877,-500.0,0.00040547,120]
[336729294,1725085283936,-500.0,0.00040547,120]
[336729295,1725085283990,-500.0,0.00040547,120]
[336729296,1725085284043,-500.0,0.00040547,120]
[336729297,1725085284097,-500.0,0.00040547,120]
[336729298,1725085284147,-500.0,0.00040547,120]
[336729299,1725085284200,-500.0,0.00040547,120]
[336729300,1725085284252,-970.41,0.00040547,120]
[336729301,1725085284303,-500.0,0.00040547,120]
[336729302,1725085284354,-500.0,0.00040547,120]
[336729303,1725085284406,-1254.2,0.00040547,120]
[336729304,1725085284458,-2064.59,0.00040547,120]
[336729305,1725085284508,-500.0,0.00040547,120]
[336729306,1725085284559,-1831.01,0.00040547,120]
[336729307,1725085284611,-1397.22,0.00040547,120]
[336729308,1725085284662,-500.0,0.00040547,120]
[336729309,1725085284713,-2245.78,0.00040547,120]
[336729310,1725085284763,-500.0,0.00040547,120]
[336729311,1725085284817,-1552.31,0.00040547,120]
[336729312,1725085284869,-2597.83,0.00040547,120]
[336729313,1725085284918,-500.0,0.00040547,120]
[336729314,1725085284968,-1035.53,0.00040547,120]
[336729315,1725085285019,-500.0,0.00040547,120]
[336729316,1725085285068,-744.82,0.00040547,120]
[336729317,1725085285121,-449.01897067,0.00040547,120]
[336729318,1725085285170,-500.0,0.00040547,120]
[336729319,1725085285220,-696.59,0.00040547,120]
[336729320,1725085285274,-673.61,0.00040547,120]
[336729321,1725085285326,-150.0,0.00040547,120]
[336729322,1725085285377,-1520.87,0.00040547,120]
[336729323,1725085285431,-582.5,0.00040547,120]
[336729324,1725085285483,-500.0,0.00040547,120]
[336729325,1725085285534,-531.38,0.00040547,120]
[336729326,1725085285586,-1554.54,0.00040547,120]
[336729327,1725085285644,-1271.21,0.00040547,120]
[336729328,1725085285701,-506.46,0.00040547,120]
[336729329,1725085285755,-500.0,0.00040547,120]
[336729330,1725085285949,-500.0,0.00040547,120]
[336729331,1725085286001,-500.0,0.00040547,120]
[336729332,1725085286058,-525.09,0.00040547,120]
[336729333,1725085286114,-917.3,0.00040547,120]
[336729334,1725085286168,-500.0,0.00040547,120]
[336729335,1725085286223,-500.0,0.00040547,120]
[336729336,1725085286279,-996.95,0.00040547,120]
[336729337,1725085286335,-500.0,0.00040547,120]
[336729338,1725085286392,-696.4,0.00040547,120]
[336729339,1725085286449,-500.0,0.00040547,120]
[336729340,1725085286506,-803.74,0.00040547,120]
[336729341,1725085286563,-748.83,0.00040547,120]
[336729342,1725085286621,-500.0,0.00040547,120]
[336729343,1725085286681,-500.0,0.00040547,120]
[336729344,1725085286737,-500.0,0.00040547,120]
[336729345,1725085286792,-500.0,0.00040547,120]
[336729346,1725085286848,-568.05,0.00040547,120]
[336729347,1725085286905,-1168.88,0.00040547,120]
[336729348,1725085286960,-761.86,0.00040547,120]
[336729349,1725085287013,-991.52,0.00040547,120]
[336729350,1725085287068,-500.0,0.00040547,120]
[336729351,1725085287121,-500.0,0.00040547,120]
[336729352,1725085287175,-1384.4,0.00040547,120]
[336729353,1725085287232,-731.6,0.00040547,120]
[336729354,1725085287288,-500.0,0.00040547,120]
[336729355,1725085287346,-2458.49,0.00040547,120]
[336729356,1725085287404,-500.0,0.00040547,120]
[336729357,1725085287458,-500.0,0.00040547,120]
[336729358,1725085287512,-540.27,0.00040547,120]
[336729359,1725085287566,-500.0,0.00040547,120]
[336729360,1725085287620,-500.0,0.00040547,120]
[336729361,1725085287673,-500.0,0.00040547,120]
[336729362,1725085287727,-2118.23,0.00040547,120]
[336729363,1725085287781,-600.38,0.00040547,120]
[336729364,1725085287831,-522.69,0.00040547,120]
[336729365,1725085287882,-1210.64,0.00040547,120]
[336729366,1725085287936,-500.0,0.00040547,120]
[336729367,1725085287986,-500.0,0.00040547,120]
[336729368,1725085288037,-174.74661675,0.00040547,120]
[336729369,1725085288088,-500.0,0.00040547,120]
[336729370,1725085288139,-500.0,0.00040547,120]
[336729371,1725085288188,-1856.52,0.00040547,120]
[336729372,1725085288240,-500.0,0.00040547,120]
[336729373,1725085288292,-500.0,0.00040547,120]
[336729374,1725085288344,-500.0,0.00040547,120]
[336729375,1725085288396,-594.5761935,0.00040547,120]
[336729376,1725085288449,-856.67,0.00040547,120]
[336729377,1725085288501,-1905.46,0.00040547,120]
[336729378,1725085288556,-500.0,0.00040547,120]
[336729379,1725085288612,-1521.24,0.00040547,120]
[336729380,1725085288671,-500.0,0.00040547,120]
[336729381,1725085288725,-547.37,0.00040547,120]
[336729382,1725085288782,-500.0,0.00040547,120]
[336729383,1725085288836,-660.11,0.00040547,120]
[336729384,1725085288892,-2325.34,0.00040547,120]
[336729385,1725085288946,-431.00304186,0.00040547,120]
[336729386,1725085289008,-501.74,0.00040547,120]
[336729387,1725085289062,-526.34204664,0.00040547,120]
[336729388,1725085289116,-849.88,0.00040547,120]
[336729389,1725085289169,-2388.65,0.00040547,120]
[336729390,1725085289223,-500.0,0.00040547,120]
[336729391,1725085289280,-2070.59,0.00040547,120]
[336729392,1725085289336,-500.0,0.00040547,120]
[336729393,1725085289391,-1982.62,0.00040547,120]
[336729394,1725085289445,-500.0,0.00040547,120]
[336729395,1725085289499,-500.0,0.00040547,120]
[336729396,1725085289552,-500.0,0.00040547,120]
[336729397,1725085289610,-500.0,0.00040547,120]
[336729398,1725085289665,-2073.66,0.00040547,120]
[336729399,1725085289717,-500.0,0.00040547,120]
[336729400,1725085289769,-909.97,0.00040547,120]
[336729401,1725085289824,-523.5,0.00040547,120]
[336729402,1725085289876,-500.0,0.00040547,120]
[336729403,1725085289928,-500.0,0.00040547,120]
[336729404,1725085289981,-500.0,0.00040547,120]
[336729405,1725085290036,-2189.52,0.00040547,120]
[336729406,1725085290089,-500.0,0.00040547,120]
[336729407,1725085290142,-500.0,0.00040547,120]
[336729408,1725085290195,-1371.6,0.00040547,120]
[336729409,1725085290249,-804.7,0.00040547,120]
[336729410,1725085290302,-1112.52,0.00040547,120]
[336729411,1725085290356,-500.0,0.00040547,120]
[336729412,1725085290410,-2039.92,0.00040547,120]
[336729413,1725085290470,-964.65,0.00040547,120]
[336729414,1725085290524,-500.0,0.00040547,120]
[336729415,1725085290583,-500.0,0.00040547,120]
[336729416,1725085290637,-500.0,0.00040547,120]
[336729417,1725085290691,-500.0,0.00040547,120]
[336729418,1725085290742,-1312.09,0.00040547,120]
[336729419,1725085291081,-500.0,0.00040547,120]
[336729420,1725085291133,-595.15904103,0.00040547,120]
[336729421,1725085291184,-500.0,0.00040547,120]
[336729422,1725085291236,-1782.75,0.00040547,120]
[336729423,1725085291287,-500.0,0.00040547,120]
[336729424,1725085291339,-1702.92,0.00040547,120]
[336729425,1725085291391,-1029.68,0.00040547,120]
[336729426,1725085291442,-500.0,0.00040547,120]
[336729427,1725085291492,-2092.19,0.00040547,120]
[336729428,1725085291544,-500.0,0.00040547,120]
[336729429,1725085291602,-1324.2,0.00040547,120]
[336729430,1725085291654,-500.0,0.00040547,120]
[336729431,1725085291705,-500.0,0.00040547,120]
[336729432,1725085291756,-500.0,0.00040547,120]
[336729433,1725085291806,-500.0,0.00040547,120]
[336729434,1725085291859,-687.53,0.00040547,120]
[336729435,1725085291913,-500.0,0.00040547,120]
[336729436,1725085291963,-1577.57,0.00040547,120]
[336729437,1725085292018,-1633.84,0.00040547,120]
[336729438,1725085292070,-927.35,0.00040547,120]
[336729439,1725085292123,-500.0,0.00040547,120]
[336729440,1725085292172,-500.0,0.00040547,120]
[336729441,1725085292223,-500.0,0.00040547,120]
[336729442,1725085292273,-500.0,0.00040547,120]
[336729443,1725085292325,-500.0,0.00040547,120]
[336729444,1725085292378,-500.0,0.00040547,120]
[336729445,1725085292428,-500.0,0.00040547,120]
[336729446,1725085292480,-1255.1,0.00040547,120]
[336729447,1725085292533,-961.72,0.00040547,120]
[336729448,1725085292584,-500.0,0.00040547,120]
[336729449,1725085292639,-500.0,0.00040547,120]
[336729450,1725085292695,-500.0,0.00040547,120]
[336729451,1725085292747,-500.0,0.00040547,120]
[336729452,1725085292797,-793.38,0.00040547,120]
[336729453,1725085292849,-553.73,0.00040547,120]
[336729454,1725085292901,-500.0,0.00040547,120]
[336729455,1725085292954,-2218.72,0.00040547,120]
[336729456,1725085293008,-1344.82,0.00040547,120]
[336729457,1725085293065,-500.0,0.00040547,120]
[336729458,1725085293118,-500.0,0.00040547,120]
[336729459,1725085293172,-500.0,0.00040547,120]
[336729460,1725085293230,-846.91,0.00040547,120]
[336729461,1725085293286,-500.0,0.00040547,120]
[336729462,1725085293345,-1968.84,0.00040547,120]
[336729463,1725085293399,-500.0,0.00040547,120]
[336729464,1725085293453,-1518.96,0.00040547,120]
[336729465,1725085293509,-256.06692351,0.00040547,120]
[336729466,1725085293565,-1835.9,0.00040547,120]
[336729467,1725085293621,-558.42368829,0.00040547,120]
[336729468,1725085293680,-322.8319501,0.00040547,120]
[336729469,1725085293736,-596.8666066,0.00040547,120]
[336729470,1725085293795,-1044.01,0.00040547,120]
[336729471,1725085293851,-603.33,0.00040547,120]
[336729472,1725085293909,-2179.57,0.00040547,120]
[336729473,1725085293963,-805.02,0.00040547,120]
[336729474,1725085294017,-500.0,0.00040547,120]
[336729475,1725085294074,-500.0,0.00040547,120]
[336729476,1725085294126,-1640.29,0.00040547,120]
[336729477,1725085294177,-1667.23,0.00040547,120]
[336729478,1725085294230,-500.0,0.00040547,120]
[336729479,1725085294283,-1646.21,0.00040547,120]
[336729480,1725085294335,-497.54802627,0.00040547,120]
[336729481,1725085294388,-591.32,0.00040547,120]
[336729482,1725085294439,-795.81,0.00040547,120]
[336729483,1725085294491,-877.02,0.00040547,120]
[336729484,1725085294545,-2067.77,0.00040547,120]
[336729485,1725085294599,-608.39,0.00040547,120]
[336729486,1725085294652,-1275.11,0.00040547,120]
[336729487,1725085294704,-500.0,0.00040547,120]
[336729488,1725085294756,-500.0,0.00040547,120]
[336729489,1725085294809,-500.0,0.00040547,120]
[336729490,1725085294867,-500.0,0.00040547,120]
[336729491,1725085294922,-572.01,0.00040547,120]
[336729492,1725085294973,-500.0,0.00040547,120]
[336729493,1725085295024,-1704.35,0.00040547,120]
[336729494,1725085295076,-844.24,0.00040547,120]
[336729495,1725085295128,-500.0,0.00040547,120]
[336729496,1725085295177,-606.37,0.00040547,120]
[336729497,1725085295230,-1379.1,0.00040547,120]
[336729498,1725085295285,-2069.4,0.00040547,120]
[336729499,1725085295341,-500.0,0.00040547,120]
[336729500,1725085295396,-573.28,0.00040547,120]
[336729501,1725085295450,-1830.7,0.00040547,120]
[336729502,1725085295502,-500.0,0.00040547,120]
[336729503,1725085295554,-936.23,0.00040547,120]
[336729504,1725085295610,-505.41,0.00040547,120]
[336729505,1725085295663,-414.54438308,0.00040547,120]
[336729506,1725085295714,-500.0,0.00040547,120]
[336729507,1725085295766,-463.986059,0.00040547,120]
[336729508,1725085295823,-565.82,0.00040547,120]
[336729509,1725085295879,-500.0,0.00040547,120]
[336729510,1725085295936,-500.0,0.00040547,120]
[336729511,1725085295991,-802.68,0.00040547,120]
[336729512,1725085296045,-1846.73,0.00040547,120]
[336729513,1725085296100,-500.0,0.00040547,120]
[336729514,1725085296153,-500.0,0.00040547,120]
[336729515,1725085296206,-500.0,0.00040547,120]
[336729516,1725085296259,-709.12,0.00040547,120]
[336729517,1725085296313,-1624.05,0.00040547,120]
[336729518,1725085296367,-1465.91,0.00040547,120]
[336729519,1725085296421,-508.15,0.00040547,120]
[336729520,1725085296476,-1707.44,0.00040547,120]
[336729521,1725085296532,-500.0,0.00040547,120]
[336729522,1725085296585,-500.0,0.00040547,120]
[336729523,1725085296642,-500.0,0.00040547,120]
[336729524,1725085296696,-829.84,0.00040547,120]
[336729525,1725085296749,-500.0,0.00040547,120]
[336729526,1725085296801,-695.91,0.00040547,120]
[336729527,1725085296854,-508.01,0.00040547,120]
[336729528,1725085296907,-500.0,0.00040547,120]
[336729529,1725085296960,-500.0,0.00040547,120]
[336729530,1725085297013,-520.05604836,0.00040547,120]
[336729531,1725085297065,-500.0,0.00040547,120]
[336729532,1725085297117,-1694.24,0.00040547,120]
[336729533,1725085297169,-500.0,0.00040547,120]
[336729534,1725085297220,-1329.5,0.00040547,120]
[336729535,1725085297273,-500.0,0.00040547,120]
[336729536,1725085297334,-1254.74,0.00040547,120]
[336729537,1725085297386,-500.0,0.00040547,120]
[336729538,1725085297440,-701.74,0.00040547,120]
[336729539,1725085297492,-1718.9,0.00040547,120]
[336729540,1725085297545,-500.0,0.00040547,120]
[336729541,1725085297596,-500.0,0.00040547,120]
[336729542,1725085297652,-500.0,0.00040547,120]
[336729543,1725085297707,-536.3,0.00040547,120]
[336729544,1725085297761,-500.0,0.00040547,120]
[336729545,1725085297814,-500.0,0.00040547,120]
[336729546,1725085297873,-1416.58,0.00040547,120]
[336729547,1725085297927,-1344.35,0.00040547,120]
[336729548,1725085297982,-500.0,0.00040547,120]
[336729549,1725085298036,-1308.79,0.00040547,120]
[336729550,1725085298090,-1065.87,0.00040547,120]
[336729551,1725085298146,-598.48,0.00040547,120]
[336729552,1725085298198,-934.02,0.00040547,120]
[336729553,1725085298251,-1376.61,0.00040547,120]
[336729554,1725085298305,-1682.93,0.00040547,120]
[336729555,1725085298360,-183.47976571,0.00040547,120]
[336729556,1725085298414,-1537.85,0.00040547,120]
[336729557,1725085298466,-546.73,0.00040547,120]
[336729558,1725085298519,-1026.63,0.00040547,120]
[336729559,1725085298577,-500.0,0.00040547,120]
[336729560,1725085298629,-1312.14,0.00040547,120]
[336729561,1725085298685,-500.0,0.00040547,120]
[336729562,1725085298751,-1653.03,0.00040547,120]
[336729563,1725085298818,-500.0,0.00040547,120]
[336729564,1725085298878,-510.7390407,0.00040547,120]
[336729565,1725085298939,-500.0,0.00040547,120]
[336729566,1725085299000,-522.63,0.00040547,120]
[336729567,1725085299065,-802.15,0.00040547,120]
[336729568,1725085299124,-500.0,0.00040547,120]
[336729569,1725085299183,-500.0,0.00040547,120]
[336729570,1725085299243,-500.0,0.00040547,120]
[336729571,1725085299301,-520.04,0.00040547,120]
[336729572,1725085299360,-1148.46,0.00040547,120]
[336729573,1725085299419,-500.0,0.00040547,120]
[336729574,1725085299481,-554.41,0.00040547,120]
[336729575,1725085299536,-1325.16,0.00040547,120]
[336729576,1725085299591,-795.3,0.00040547,120]
[336729577,1725085299652,-1311.27,0.00040547,120]
[336729578,1725085299710,-1407.95,0.00040547,120]
[336729579,1725085299772,-500.0,0.00040547,120]
[336729580,1725085299831,-1863.91,0.00040547,120]
[336729581,1725085299886,-500.0,0.00040547,120]
[336729582,1725085299944,-1652.24,0.00040547,120]
[336729583,1725085300002,-641.76,0.00040547,120]
[336729584,1725085300062,-854.31,0.00040547,120]
[336729585,1725085300119,-500.0,0.00040547,120]
[336729586,1725085300175,-527.05,0.00040547,120]
[336729587,1725085300231,-228.16373285,0.00040547,120]
[336729588,1725085300287,-500.0,0.00040547,120]
[336729589,1725085300345,-616.77,0.00040547,120]
[336729590,1725085300405,-956.29,0.00040547,120]
[336729591,1725085300461,-2261.76,0.00040547,120]
[336729592,1725085300516,-500.0,0.00040547,120]
[336729593,1725085300573,-675.48,0.00040547,120]
[336729594,1725085300630,-500.0,0.00040547,120]
[336729595,1725085300686,-500.0,0.00040547,120]
[336729596,1725085300745,-168.64230138,0.00040547,120]
[336729597,1725085301643,-979.96,0.00040547,120]
[336729598,1725085301731,-532.04,0.00040547,120]
[336729599,1725085301781,-1078.05,0.00040547,120]
[336729600,1725085301833,-1968.69,0.00040547,120]
[336729601,1725085301882,-528.35,0.00040547,120]
[336729602,1725085301930,-500.0,0.00040547,120]
[336729603,1725085301980,-591.29327482,0.00040547,120]
[336729604,1725085302034,-500.0,0.00040547,120]
[336729605,1725085302086,-500.0,0.00040547,120]
[336729606,1725085302140,-500.0,0.00040547,120]
[336729607,1725085302193,-1332.09,0.00040547,120]
[336729608,1725085302245,-500.0,0.00040547,120]
[336729609,1725085302295,-876.79,0.00040547,120]
[336729610,1725085302346,-626.92453712,0.00040547,120]
[336729611,1725085302398,-1367.12,0.00040547,120]
[336729612,1725085302449,-500.0,0.00040547,120]
[336729613,1725085302499,-2989.98,0.00040547,120]
[336729614,1725085302551,-579.60184327,0.00040547,120]
[336729615,1725085302602,-1307.87,0.00040547,120]
[336729616,1725085302656,-500.0,0.00040547,120]
[336729617,1725085302709,-500.0,0.00040547,120]
[336729618,1725085302764,-1296.01,0.00040547,120]
[336729619,1725085302814,-1533.32,0.00040547,120]
[336729620,1725085302872,-500.0,0.00040547,120]
[336729621,1725085302923,-500.0,0.00040547,120]
[336729622,1725085302978,-500.0,0.00040547,120]
[336729623,1725085303032,-600.74,0.00040547,120]
[336729624,1725085303086,-5814.25,0.00040547,120]
[336729625,1725085303139,-629.87,0.00040547,120]
[336729626,1725085303193,-1062.71,0.00040547,120]
[336729627,1725085303251,-533.34,0.00040547,120]
[336729628,1725085303309,-1824.21,0.00040547,120]
[336729629,1725085303368,-1015.22,0.00040547,120]
[336729630,1725085303424,-500.0,0.00040547,120]
[336729631,1725085303481,-500.0,0.00040547,120]
[336729632,1725085303534,-951.23,0.00040547,120]
[336729633,1725085303588,-5481.44,0.00040547,120]
[336729634,1725085303644,-894.49,0.00040547,120]
[336729635,1725085303699,-842.88,0.00040547,120]
[336729636,1725085303754,-1186.34,0.00040547,120]
[336729637,1725085303809,-677.22,0.00040547,120]
[336729638,1725085303871,-500.0,0.00040547,120]
[336729639,1725085303930,-767.11,0.00040547,120]
[336729640,1725085303985,-5075.61,0.00040547,120]
[336729641,1725085304039,-862.19,0.00040547,120]
[336729642,1725085304091,-528.15,0.00040547,120]
[336729643,1725085304145,-562.28,0.00040547,120]
[336729644,1725085304196,-825.37,0.00040547,120]
[336729645,1725085304248,-1653.61,0.00040547,120]
[336729646,1725085304304,-1753.96,0.00040547,120]
[336729647,1725085304358,-2000.96,0.00040547,120]
[336729648,1725085304409,-500.0,0.00040547,120]
[336729649,1725085304463,-1013.59,0.00040547,120]
[336729650,1725085304517,-500.0,0.00040547,120]
[336729651,1725085304572,-1776.62,0.00040547,120]
[336729652,1725085304629,-500.0,0.00040547,120]
[336729653,1725085304683,-500.0,0.00040547,120]
[336729654,1725085304733,-500.0,0.00040547,120]
[336729655,1725085304790,-3910.3,0.00040547,120]
[336729656,1725085304842,-1570.05,0.00040547,120]
[336729657,1725085304894,-764.94,0.00040547,120]
[336729658,1725085304950,-500.0,0.00040547,120]
[336729659,1725085305001,-500.0,0.00040547,120]
[336729660,1725085305054,-604.10543701,0.00040547,120]
[336729661,1725085305107,-500.0,0.00040547,120]
[336729662,1725085305158,-500.0,0.00040547,120]
[336729663,1725085305210,-500.0,0.00040547,120]
[336729664,1725085305264,-500.0,0.00040547,120]
[336729665,1725085305315,-883.9,0.00040547,120]
[336729666,1725085305368,-500.0,0.00040547,120]
[336729667,1725085305422,-696.93,0.00040547,120]
[336729668,1725085305473,-500.0,0.00040547,120]
[336729669,1725085305524,-500.0,0.00040547,120]
[336729670,1725085305578,-500.0,0.00040547,120]
[336729671,1725085305630,-500.0,0.00040547,120]
[336729672,1725085305683,-1372.32,0.00040547,120]
[336729673,1725085305740,-500.0,0.00040547,120]
[336729674,1725085305796,-833.92,0.00040547,120]
[336729675,1725085305849,-510.04970712,0.00040547,120]
[336729676,1725085305905,-664.41,0.00040547,120]
[336729677,1725085305957,-334.7425595,0.00040547,120]
[336729678,1725085306012,-1438.05,0.00040547,120]
[336729679,1725085306069,-500.0,0.00040547,120]
[336729680,1725085306124,-863.53,0.00040547,120]
[336729681,1725085306180,-785.33,0.00040547,120]
[336729682,1725085306234,-1603.72,0.00040547,120]
[336729683,1725085306291,-500.0,0.00040547,120]
[336729684,1725085306344,-500.0,0.00040547,120]
[336729685,1725085306398,-500.0,0.00040547,120]
[336729686,1725085306454,-2224.87,0.00040547,120]
[336729687,1725085306504,-500.0,0.00040547,120]
[336729688,1725085306556,-1322.92,0.00040547,120]
[336729689,1725085306615,-2404.44,0.00040547,120]
[336729690,1725085306673,-500.0,0.00040547,120]
[336729691,1725085306733,-901.41,0.00040547,120]
[336729692,1725085306788,-610.01,0.00040547,120]
[336729693,1725085306843,-729.12,0.00040547,120]
[336729694,1725085306895,-500.0,0.00040547,120]
[336729695,1725085306948,-1979.21,0.00040547,120]
[336729696,1725085307003,-577.81,0.00040547,120]
[336729697,1725085307056,-500.0,0.00040547,120]
[336729698,1725085307280,-6226.26,0.00040547,120]
[336729699,1725085307334,-666.11,0.00040547,120]
[336729700,1725085307386,-500.0,0.00040547,120]
[336729701,1725085307440,-500.0,0.00040547,120]
[336729702,1725085307495,-500.0,0.00040547,120]
[336729703,1725085307554,-2083.88,0.00040547,120]
[336729704,1725085307609,-2247.13,0.00040547,120]
[336729705,1725085307662,-500.0,0.00040547,120]
[336729706,1725085307712,-3075.22,0.00040547,120]
[336729707,1725085307766,-2368.94,0.00040547,120]
[336729708,1725085307823,-150.0,0.0004055,120]
[336729709,1725085307872,-1000.0,0.00040604,120]
[336729710,1725085307926,-150.0,0.00040614,120]
[336729711,1725085307980,-2000.0,0.00040863,120]
[336729712,1725085308036,-1000.0,0.00040897,120]
[336729713,1725085308085,-2886.83149936,0.000409,120]
[336729714,1725085308132,-1270.22067942,0.000409,120]
[336729715,1725085308182,-285.7413751,0.00040998,120]
[336729716,1725085308233,-408.95207783,0.00041,120]
[336729717,1725085308285,-499.999999,0.00041,120]
[336729718,1725085308336,-795.54732847,0.00041,120]
[336729719,1725085308390,-500000.0,0.00041,120]
[336729720,1725085308442,-400.0,0.00041,120]
[336729721,1725085308494,-232.0,0.00041,120]
[336729722,1725085308548,-372.33,0.00041,120]
[336729723,1725085308602,-150.0,0.00041064,120]
[336729724,1725085308654,-502.32699068,0.00041085,120]
[336729725,1725085308708,-590.64,0.00041095,120]
[336729726,1725085308760,-561.19397542,0.00041095,120]
[336729727,1725085308812,-2142.76,0.00041095,120]
[336729728,1725085308866,-500.0,0.00041095,120]
[336729729,1725085308919,-500.0,0.00041095,120]
[336729730,1725085308970,-500.0,0.00041095,120]
[336729731,1725085309020,-500.0,0.00041095,120]
[336729732,1725085309073,-500.0,0.00041095,120]